bitfinex/quotes_SOLUSD_20230105
["timestamp","ask_amount","ask_price","bid_price","bid_amount"]
[1672931946188,20.0,13.338,13.318,22.41737149]
[1672931946387,20.0,13.338,13.319,56.35]
[1672931946835,20.0,13.338,13.319,78.76737149]
[1672931947026,76.27,13.338,13.32,20.0]
[1672931947231,76.27,13.338,13.321,56.35]
[1672931947441,76.27,13.338,13.322,20.0]
[1672931947667,20.0,13.338,13.323,56.34]
[1672931947881,20.0,13.338,13.324,20.0]
[1672931948074,56.28,13.337,13.324,20.0]
[1672931948489,56.28,13.337,13.31,38.41]
[1672931948490,38.13,13.33,13.316,56.37]
[1672931948696,20.0,13.329,13.312,20.0]
[1672931948931,20.0,13.329,13.313,78.79737149]
[1672931949663,111.5143,13.328,13.313,78.79737149]
[1672931949870,20.0,13.327,13.314,20.0]
[1672931950076,111.5143,13.328,13.315,56.37]
[1672931950278,56.28,13.337,13.316,20.0]
[1672931950491,170.6472,13.337,13.318,20.0]
[1672931950705,20.0,13.336,13.319,56.35]
[1672931950913,20.0,13.336,13.32,20.0]
[1672931952271,20.0,13.336,13.321,56.35]
[1672931952501,20.0,13.336,13.322,20.0]
[1672931952711,20.0,13.336,13.323,56.34]
[1672931952902,114.3672,13.337,13.324,20.0]
[1672931953112,114.3672,13.337,13.325,56.33]
[1672931953659,114.3672,13.337,13.325,78.74737149]
[1672931956289,114.3672,13.337,13.325,22.41737149]
[1672931957006,114.3672,13.337,13.325,78.74737149]
[1672931957440,114.3672,13.337,13.325,22.41737149]
[1672931957973,20.0,13.336,13.325,22.41737149]
[1672931960285,20.0,13.336,13.324,20.0]
[1672931960495,20.0,13.336,13.32,20.0]
[1672931960708,114.3672,13.337,13.321,76.35]
[1672931960891,114.3672,13.337,13.322,20.0]
[1672931961107,38.16,13.33,13.322,20.0]
[1672931961648,38.16,13.33,13.318,20.0]
[1672931961851,38.16,13.33,13.319,76.35]
[1672931962269,38.16,13.33,13.319,20.0]
[1672931962471,38.16,13.33,13.317,20.0]
[1672931962681,20.0,13.329,13.318,56.36]
[1672931962909,137.6511,13.329,13.315,56.37]
[1672931963105,20.0,13.327,13.312,56.38]
[1672931963522,20.0,13.327,13.308,111.6879]
[1672931963523,20.0,13.327,13.311,56.39]
[1672931963742,20.0,13.327,13.309,56.4]
[1672931964363,20.0,13.327,13.31,20.0]
[1672931964590,20.0,13.327,13.311,56.39]
[1672931964906,20.0,13.327,13.31,20.0]
[1672931965096,20.0,13.327,13.311,56.39]
[1672931965312,114.2875,13.328,13.311,56.39]
[1672931965522,114.2875,13.328,13.312,20.0]
[1672931965742,114.2875,13.328,13.314,20.0]
[1672931965949,114.2875,13.328,13.315,56.37]
[1672931967756,20.0,13.327,13.311,56.39]
[1672931967968,20.0,13.327,13.312,42.41737149]
[1672931968162,20.0,13.327,13.313,56.38]
[1672931968488,20.0,13.327,13.314,20.0]
[1672931968686,114.2875,13.328,13.315,76.37]
[1672931969108,114.2875,13.328,13.315,56.37]
[1672931969529,114.2875,13.328,13.316,20.0]
[1672931969733,114.2875,13.328,13.317,56.36]
[1672931969950,114.2875,13.328,13.317,78.77737149]
[1672931970152,117.6511,13.329,13.317,56.36]
[1672931970364,38.51,13.33,13.318,42.41737149]
[1672931970578,38.51,13.33,13.319,56.35]
[1672931970891,38.51,13.33,13.32,20.0]
[1672931971330,223.654,13.335,13.32,42.41737149]
[1672931971523,223.654,13.335,13.321,76.35]
[1672931971937,223.654,13.335,13.321,98.76737149]
[1672931973640,20.0,13.334,13.321,98.76737149]
[1672931975220,223.654,13.335,13.321,98.76737149]
[1672931976146,223.654,13.335,13.321,76.35]
[1672931976567,223.654,13.335,13.322,22.41737149]
[1672931976773,223.654,13.335,13.323,56.34]
[1672931976984,223.654,13.335,13.324,20.0]
[1672931977195,223.654,13.335,13.325,56.33]
[1672931977421,20.0,13.34,13.326,20.0]
[1672931977616,20.0,13.34,13.327,56.32]
[1672931977954,20.0,13.34,13.328,20.0]
[1672931978269,20.0,13.34,13.329,56.31]
[1672931978581,20.0,13.34,13.33,20.0]
[1672931978979,20.0,13.34,13.326,20.0]
[1672931979189,20.0,13.34,13.327,56.32]
[1672931979399,20.0,13.34,13.328,20.0]
[1672931979620,20.0,13.34,13.329,56.31]
[1672931979835,20.0,13.34,13.33,20.0]
[1672931980364,58.16,13.34,13.33,20.0]
[1672931980579,58.16,13.34,13.326,20.0]
[1672931980776,58.16,13.34,13.327,56.32]
[1672931980980,58.16,13.34,13.328,20.0]
[1672931981397,58.16,13.34,13.324,56.33]
[1672931981630,56.76414119,13.339,13.312,108.2717]
[1672931981834,76.27,13.338,13.314,30.0]
[1672931982041,127.0001462,13.338,13.315,20.0]
[1672931982248,50.7301462,13.337,13.316,56.37]
[1672931982463,20.0,13.335,13.317,20.0]
[1672931982682,20.0,13.335,13.318,56.36]
[1672931983192,135.6151,13.335,13.318,56.36]
[1672931983402,135.6151,13.335,13.319,20.0]
[1672931983613,135.6151,13.335,13.32,56.35]
[1672931983818,135.6151,13.335,13.321,20.0]
[1672931984450,135.6151,13.335,13.319,20.0]
[1672931984912,135.6151,13.335,13.318,20.0]
[1672931985093,135.6151,13.335,13.319,56.35]
[1672931985289,135.6151,13.335,13.32,20.0]
[1672931985836,135.6151,13.335,13.321,56.35]
[1672931986144,135.6151,13.335,13.322,20.0]
[1672931986567,115.6151,13.335,13.321,20.0]
[1672931986880,115.6151,13.335,13.322,42.41737149]
[1672931987094,115.6151,13.335,13.323,76.34]
[1672931987493,115.6151,13.335,13.323,98.75737149]
[1672931989302,115.6151,13.335,13.323,76.34]
[1672931989816,115.6151,13.335,13.323,20.0]
[1672931990031,115.6151,13.335,13.318,20.0]
[1672931990447,115.6151,13.335,13.32,20.0]
[1672931990647,115.6151,13.335,13.32,40.0]
[1672931990860,115.6151,13.335,13.321,76.35]
[1672931991067,115.6151,13.335,13.322,20.0]
[1672931991526,20.0,13.334,13.322,20.0]
[1672931991703,20.0,13.334,13.32,20.0]
[1672931992356,20.0,13.334,13.319,20.0]
[1672931992964,115.6151,13.335,13.319,42.41737149]
[1672931993178,115.6151,13.335,13.32,94.84]
[1672931993496,115.6151,13.335,13.322,20.0]
[1672931993706,115.6151,13.335,13.322,56.34]
[1672931994142,115.6151,13.335,13.323,20.0]
[1672931994775,115.6151,13.335,13.322,20.0]
[1672931998754,115.6151,13.335,13.322,76.34]
[1672931998960,115.6151,13.335,13.323,20.0]
[1672931999696,115.6151,13.335,13.321,20.0]
[1672931999912,115.6151,13.335,13.322,56.34]
[1672932000121,115.6151,13.335,13.323,20.0]
[1672932000339,20.0,13.334,13.323,20.0]
[1672932000539,56.29,13.333,13.312,56.38]
[1672932000749,168.3828,13.333,13.313,50.0]
[1672932000979,20.0,13.332,13.315,20.0]
[1672932001293,20.0,13.332,13.316,56.37]
[1672932001904,20.0,13.332,13.315,20.0]
[1672932002224,20.0,13.332,13.317,20.0]
[1672932002653,168.3828,13.333,13.317,20.0]
[1672932002960,115.6151,13.335,13.319,20.0]
[1672932003165,115.6151,13.335,13.321,20.0]
[1672932003373,115.6151,13.335,13.322,56.34]
[1672932003579,115.6151,13.335,13.323,20.0]
[1672932003806,115.6151,13.335,13.324,56.33]
[1672932004353,115.6151,13.335,13.323,56.34]
[1672932004542,115.6151,13.335,13.324,20.0]
[1672932008532,118.7646,13.339,13.325,20.0]
[1672932008956,118.7646,13.339,13.325,76.33]
[1672932009283,118.7646,13.339,13.326,22.41737149]
[1672932009686,118.7646,13.339,13.325,56.33]
[1672932010128,20.0,13.338,13.325,56.33]
[1672932014551,118.7646,13.339,13.325,56.33]
[1672932015478,20.0,13.338,13.325,56.33]
[1672932016966,118.7646,13.339,13.325,56.33]
[1672932017911,114.1606,13.342,13.326,42.41737149]
[1672932018115,114.1606,13.342,13.328,20.0]
[1672932018329,114.1606,13.342,13.329,76.31]
[1672932018643,114.1606,13.342,13.329,98.72737149]
[1672932018838,114.1606,13.342,13.33,22.41737149]
[1672932019047,114.1606,13.342,13.331,76.3]
[1672932019598,114.1606,13.342,13.332,22.41737149]
[1672932020121,114.1606,13.342,13.333,20.0]
[1672932020956,114.1606,13.342,13.333,42.41737149]
[1672932021380,119.7278,13.349,13.333,42.41737149]
[1672932021596,119.7278,13.349,13.334,56.29]
[1672932021902,119.7278,13.349,13.335,42.41737149]
[1672932022097,116.2466,13.348,13.335,42.41737149]
[1672932022305,116.2466,13.348,13.336,22.41737149]
[1672932023986,116.2466,13.348,13.334,56.29]
[1672932023987,20.0,13.347,13.334,56.29]
[1672932024623,20.0,13.347,13.335,22.41737149]
[1672932024833,20.0,13.347,13.336,20.0]
[1672932025043,20.0,13.347,13.335,22.41737149]
[1672932025254,116.2466,13.348,13.336,22.41737149]
[1672932025677,20.0,13.353,13.338,20.0]
[1672932025879,20.0,13.353,13.339,56.27]
[1672932026088,20.0,13.353,13.34,20.0]
[1672932026316,20.0,13.353,13.341,56.26]
[1672932026532,20.0,13.353,13.342,20.0]
[1672932026735,38.13,13.35,13.331,118.7604]
[1672932026949,20.0,13.349,13.332,20.0]
[1672932027278,20.0,13.349,13.333,22.41737149]
[1672932027583,110.0326,13.348,13.334,56.29]
[1672932027787,20.0,13.347,13.334,56.29]
[1672932027998,20.0,13.347,13.335,22.41737149]
[1672932033352,20.0,13.347,13.332,56.3]
[1672932033562,20.0,13.347,13.333,20.0]
[1672932034086,20.0,13.347,13.334,22.41737149]
[1672932035341,20.0,13.347,13.334,78.70737149]
[1672932035660,20.0,13.347,13.334,56.29]
[1672932035878,20.0,13.347,13.333,20.0]
[1672932035879,76.24,13.347,13.333,20.0]
[1672932036623,76.24,13.347,13.33,20.0]
[1672932036933,125.72601494,13.347,13.33,20.0]
[1672932037141,69.48601494,13.347,13.33,20.0]
[1672932037672,20.0,13.345,13.33,20.0]
[1672932038067,20.0,13.345,13.33,22.41737149]
[1672932038289,20.0,13.345,13.331,20.0]
[1672932038497,20.0,13.345,13.331,76.3]
[1672932038827,20.0,13.345,13.332,22.41737149]
[1672932039037,20.0,13.345,13.333,20.0]
[1672932039251,20.0,13.345,13.333,76.29]
[1672932039648,20.0,13.345,13.333,20.0]
[1672932041137,20.0,13.345,13.328,20.0]
[1672932041355,38.34,13.34,13.329,56.31]
[1672932041577,20.0,13.339,13.325,22.41737149]
[1672932041762,20.0,13.339,13.326,56.32]
[1672932042507,135.9435,13.339,13.326,56.32]
[1672932044070,135.9435,13.339,13.324,56.33]
[1672932044408,135.9435,13.339,13.324,78.74737149]
[1672932045047,135.9435,13.339,13.324,56.33]
[1672932045979,56.27,13.338,13.322,56.34]
[1672932046176,78.68737149,13.338,13.323,20.0]
[1672932046387,20.0,13.337,13.323,20.0]
[1672932046597,56.28,13.336,13.323,20.0]
[1672932046811,38.49,13.33,13.32,56.35]
[1672932047125,38.49,13.33,13.315,22.41737149]
[1672932047337,38.49,13.33,13.316,56.37]
[1672932047549,20.0,13.329,13.316,56.37]
[1672932047751,20.0,13.329,13.309,20.0]
[1672932047752,20.0,13.329,13.31,56.39]
[1672932047967,20.0,13.327,13.313,22.41737149]
[1672932048167,20.0,13.327,13.316,22.41737149]
[1672932048597,20.0,13.327,13.31,56.39]
[1672932048816,20.0,13.327,13.315,22.41737149]
[1672932049004,20.0,13.327,13.313,56.38]
[1672932049218,20.0,13.327,13.314,20.0]
[1672932049437,118.7337,13.328,13.315,56.37]
[1672932049852,118.7337,13.328,13.316,20.0]
[1672932050057,118.7337,13.328,13.317,56.36]
[1672932050268,118.7337,13.328,13.316,56.37]
[1672932050492,118.7337,13.328,13.315,78.78737149]
[1672932051770,20.0,13.327,13.315,78.78737149]
[1672932053241,20.0,13.327,13.315,56.37]
[1672932060374,20.0,13.327,13.296,238.02992598]
[1672932060375,20.0,13.325,13.301,20.0]
[1672932060586,20.0,13.325,13.302,20.0]
[1672932060587,38.16,13.32,13.302,20.0]
[1672932060806,20.0,13.319,13.302,42.41737149]
[1672932061029,20.0,13.319,13.303,98.83737149]
[1672932061427,129.7637,13.319,13.304,22.41737149]
[1672932061636,129.7637,13.319,13.305,56.41]
[1672932062080,129.7637,13.319,13.306,22.41737149]
[1672932062266,129.7637,13.319,13.307,56.4]
[1672932065657,129.7637,13.319,13.306,22.41737149]
[1672932066283,129.7637,13.319,13.302,56.43]
[1672932066493,129.7637,13.319,13.303,42.41737149]
[1672932066722,129.7637,13.319,13.304,56.42]
[1672932066908,129.7637,13.319,13.305,20.0]
[1672932067336,208.53107149,13.319,13.305,20.0]
[1672932067545,208.53107149,13.319,13.302,20.0]
[1672932067975,208.53107149,13.319,13.302,76.43]
[1672932068190,208.53107149,13.319,13.302,98.84737149]
[1672932068395,186.1137,13.319,13.303,20.0]
[1672932068617,186.1137,13.319,13.304,56.42]
[1672932068821,129.7637,13.319,13.305,20.0]
[1672932069221,129.7637,13.319,13.304,22.41737149]
[1672932069449,78.77737149,13.318,13.305,20.0]
[1672932069663,20.0,13.317,13.303,20.0]
[1672932069871,56.36,13.318,13.304,20.0]
[1672932070065,129.7637,13.319,13.305,20.0]
[1672932070500,129.7637,13.319,13.306,56.41]
[1672932071138,109.7637,13.319,13.306,56.41]
[1672932073226,109.7637,13.319,13.306,78.82737149]
[1672932073757,109.7637,13.319,13.307,20.0]
[1672932074275,109.7637,13.319,13.307,22.41737149]
[1672932074706,109.7637,13.319,13.305,20.0]
[1672932074922,20.0,13.318,13.304,20.0]
[1672932075246,20.0,13.318,13.297,20.0]
[1672932075247,20.0,13.318,13.303,20.0]
[1672932075456,56.36,13.317,13.302,20.0]
[1672932075641,20.0,13.316,13.302,20.0]
[1672932077148,56.37,13.315,13.299,40.0]
[1672932077329,20.0,13.316,13.3,20.0]
[1672932077547,20.0,13.316,13.301,20.0]
[1672932078870,20.0,13.316,13.3,20.0]
[1672932079037,20.0,13.316,13.302,20.0]
[1672932079252,76.36,13.318,13.302,40.0]
[1672932079455,56.36,13.318,13.304,20.0]
[1672932079663,109.7637,13.319,13.304,20.0]
[1672932079664,109.7637,13.319,13.304,76.42]
[1672932079875,109.7637,13.319,13.305,42.41737149]
[1672932080298,109.7637,13.319,13.306,22.41737149]
[1672932081430,109.7637,13.319,13.307,76.4]
[1672932081851,109.7637,13.319,13.308,22.41737149]
[1672932082506,109.7637,13.319,13.305,20.0]
[1672932082713,20.0,13.318,13.303,20.0]
[1672932082911,76.36,13.318,13.304,22.41737149]
[1672932083118,76.36,13.318,13.305,20.0]
[1672932083329,166.1137,13.319,13.306,20.0]
[1672932083539,109.7637,13.319,13.306,42.41737149]
[1672932083953,109.7637,13.319,13.307,22.41737149]
[1672932089947,109.7637,13.319,13.305,58.91997595]
[1672932090160,109.7637,13.319,13.305,81.33734744]
[1672932090999,20.0,13.318,13.306,38.91997595]
[1672932091212,20.0,13.318,13.307,17.0]
[1672932091717,20.0,13.318,13.306,17.0]
[1672932092140,20.0,13.318,13.305,42.41737149]
[1672932092356,20.0,13.318,13.305,20.0]
[1672932092577,76.36,13.318,13.303,42.41737149]
[1672932092792,20.0,13.318,13.303,42.41737149]
[1672932093614,20.0,13.318,13.303,98.83737149]
[1672932093932,20.0,13.318,13.304,17.0]
[1672932094353,20.0,13.318,13.305,42.41737149]
[1672932094566,166.1137,13.319,13.306,17.0]
[1672932094779,109.7637,13.319,13.306,39.41737149]
[1672932094997,109.7637,13.319,13.307,22.41737149]
[1672932095186,109.7637,13.319,13.308,17.0]
[1672932095610,109.7637,13.319,13.309,78.81737149]
[1672932095833,109.7637,13.319,13.31,17.0]
[1672932096042,109.7637,13.319,13.31,39.41737149]
[1672932096369,118.2178,13.321,13.311,22.41737149]
[1672932096574,56.33,13.325,13.311,22.41737149]
[1672932096782,170.9659,13.327,13.312,20.0]
[1672932096988,114.6459,13.327,13.313,76.38]
[1672932097311,114.6459,13.327,13.314,20.0]
[1672932097554,114.6459,13.327,13.314,42.41737149]
[1672932098152,20.0,13.326,13.314,42.41737149]
[1672932098353,76.32,13.326,13.314,20.0]
[1672932098576,76.32,13.326,13.312,20.0]
[1672932098770,12.81,13.32,13.312,22.41737149]
[1672932099102,12.81,13.32,13.305,56.41]
[1672932099307,176.2697,13.319,13.306,22.41737149]
[1672932099501,119.9197,13.319,13.306,22.41737149]
[1672932100044,20.0,13.318,13.306,22.41737149]
[1672932101391,119.9197,13.319,13.306,22.41737149]
[1672932104354,56.35,13.32,13.306,22.41737149]
[1672932104679,108.8106,13.321,13.307,104.53304982]
[1672932104991,108.8106,13.321,13.308,20.0]
[1672932105179,108.8106,13.321,13.309,56.4]
[1672932105390,108.8106,13.321,13.309,78.81737149]
[1672932105600,108.8106,13.321,13.31,22.41737149]
[1672932105914,108.8106,13.321,13.311,20.0]
[1672932106119,108.8106,13.321,13.31,22.41737149]
[1672932106358,108.8106,13.321,13.312,22.41737149]
[1672932108461,20.0,13.32,13.305,56.41]
[1672932108649,20.0,13.32,13.307,22.41737149]
[1672932112029,32.81,13.32,13.307,22.41737149]
[1672932112445,20.0,13.318,13.302,56.43]
[1672932112646,20.0,13.318,13.304,20.0]
[1672932113380,20.0,13.316,13.304,20.0]
[1672932115187,20.0,13.316,13.305,22.41737149]
[1672932115706,168.9144,13.318,13.305,22.41737149]
[1672932116027,112.5544,13.318,13.306,20.0]
[1672932116365,112.5544,13.318,13.307,22.41737149]
[1672932117713,20.0,13.317,13.307,22.41737149]
[1672932118349,112.5544,13.318,13.307,22.41737149]
[1672932118659,20.0,13.317,13.307,22.41737149]
[1672932121408,56.32,13.326,13.308,56.4]
[1672932121617,192.67,13.33,13.308,76.4]
[1672932121618,110.9214,13.325,13.308,76.4]
[1672932121930,110.9214,13.325,13.31,20.0]
[1672932122148,110.9214,13.325,13.311,56.39]
[1672932122367,110.9214,13.325,13.312,20.0]
[1672932122543,56.31,13.329,13.313,56.38]
[1672932122759,110.9214,13.333,13.315,20.0]
[1672932123076,110.9214,13.333,13.316,56.37]
[1672932123296,110.9214,13.333,13.317,20.0]
[1672932123507,110.9214,13.333,13.318,56.36]
[1672932123713,110.9214,13.333,13.318,78.77737149]
[1672932123927,20.0,13.332,13.318,78.77737149]
[1672932124141,20.0,13.332,13.319,22.41737149]
[1672932124549,20.0,13.332,13.316,56.37]
[1672932124749,20.0,13.332,13.317,22.41737149]
[1672932124968,20.0,13.332,13.319,20.0]
[1672932125179,20.0,13.332,13.318,56.36]
[1672932125393,20.0,13.332,13.32,22.41737149]
[1672932125939,20.0,13.332,13.321,17.0]
[1672932129293,110.9214,13.333,13.321,17.0]
[1672932129611,20.0,13.334,13.322,98.75737149]
[1672932129816,20.0,13.334,13.323,17.0]
[1672932130008,20.0,13.334,13.324,20.0]
[1672932130217,138.7337,13.335,13.325,17.0]
[1672932130218,118.7337,13.335,13.325,17.0]
[1672932130428,118.7337,13.335,13.325,39.41737149]
[1672932130633,118.7337,13.335,13.325,17.0]
[1672932130863,118.7337,13.335,13.326,22.41737149]
[1672932134215,118.7337,13.335,13.325,17.0]
[1672932134643,118.7337,13.335,13.324,20.0]
[1672932135088,118.7337,13.335,13.323,20.0]
[1672932135680,118.7337,13.335,13.323,42.41737149]
[1672932144642,118.7337,13.335,13.323,20.0]
[1672932144953,20.0,13.334,13.324,20.0]
[1672932145166,20.0,13.334,13.322,20.0]
[1672932145377,175.0237,13.335,13.322,20.0]
[1672932145569,118.7337,13.335,13.322,20.0]
[1672932145899,118.7337,13.335,13.321,20.0]
[1672932146112,118.7337,13.335,13.323,20.0]
[1672932146336,118.7337,13.335,13.322,56.34]
[1672932146337,118.7337,13.335,13.324,20.0]
[1672932147166,118.7337,13.335,13.322,20.0]
[1672932147377,118.7337,13.335,13.323,76.34]
[1672932147569,118.7337,13.335,13.324,20.0]
[1672932147995,118.7337,13.335,13.322,56.34]
[1672932147996,118.7337,13.335,13.323,20.0]
[1672932148835,118.7337,13.335,13.322,20.0]
[1672932151898,118.7337,13.335,13.323,17.0]
[1672932152219,118.7337,13.335,13.324,20.0]
[1672932152857,118.7337,13.335,13.322,20.0]
[1672932153167,20.0,13.334,13.322,20.0]
[1672932153903,118.7337,13.335,13.322,20.0]
[1672932154836,118.7337,13.335,13.324,20.0]
[1672932155047,118.7337,13.335,13.325,37.0]
[1672932155261,118.7337,13.335,13.325,20.0]
[1672932155475,118.7337,13.335,13.326,17.0]
[1672932157248,20.0,13.334,13.325,20.0]
[1672932157464,20.0,13.334,13.322,20.0]
[1672932158210,20.0,13.334,13.315,56.37]
[1672932158211,42.41737149,13.334,13.315,56.37]
[1672932158421,56.29,13.333,13.316,112.2143]
[1672932158638,38.28,13.33,13.316,112.2143]
[1672932158946,38.28,13.33,13.311,168.6043]
[1672932159165,78.72737149,13.329,13.311,112.2143]
[1672932159560,42.41737149,13.328,13.311,112.2143]
[1672932159768,56.32,13.327,13.311,112.2143]
[1672932159984,56.32,13.327,13.312,20.0]
[1672932160213,229.0608,13.328,13.312,76.38]
[1672932160406,20.0,13.327,13.312,76.38]
[1672932160611,20.0,13.327,13.313,20.0]
[1672932160827,20.0,13.327,13.312,76.38]
[1672932162215,229.0608,13.328,13.313,20.0]
[1672932162425,229.0608,13.328,13.314,56.37]
[1672932162619,229.0608,13.328,13.315,20.0]
[1672932162827,229.0608,13.328,13.313,76.38]
[1672932163150,20.0,13.327,13.313,20.0]
[1672932163574,20.0,13.327,13.311,112.2143]
[1672932163575,76.32,13.327,13.312,20.0]
[1672932164714,20.0,13.327,13.312,20.0]
[1672932167556,42.41737149,13.327,13.309,20.0]
[1672932167767,42.41737149,13.327,13.31,56.39]
[1672932167988,42.41737149,13.327,13.311,20.0]
[1672932168520,42.41737149,13.327,13.309,40.0]
[1672932168704,42.41737149,13.327,13.31,56.39]
[1672932168920,42.41737149,13.327,13.311,20.0]
[1672932169363,20.0,13.325,13.311,20.0]
[1672932169558,20.0,13.325,13.309,20.0]
[1672932170207,20.0,13.325,13.31,56.39]
[1672932170513,20.0,13.325,13.311,20.0]
[1672932170913,20.0,13.325,13.312,17.0]
[1672932171126,20.0,13.325,13.313,20.0]
[1672932171356,20.0,13.325,13.314,17.0]
[1672932171560,20.0,13.325,13.315,20.0]
[1672932172304,12.83,13.32,13.315,20.0]
[1672932172708,56.32,13.327,13.317,20.0]
[1672932172931,229.0608,13.328,13.318,17.0]
[1672932173660,229.0608,13.328,13.317,17.0]
[1672932173977,229.0608,13.328,13.317,20.0]
[1672932174194,229.0608,13.328,13.316,17.0]
[1672932174195,229.0608,13.328,13.318,17.0]
[1672932174405,229.0608,13.328,13.316,17.0]
[1672932175026,229.0608,13.328,13.316,73.37]
[1672932175240,229.0608,13.328,13.316,17.0]
[1672932175642,115.0792,13.328,13.317,56.36]
[1672932175853,111.2879,13.333,13.319,20.0]
[1672932176184,111.2879,13.333,13.32,76.35]
[1672932176934,111.2879,13.333,13.32,20.0]
[1672932177777,111.2879,13.333,13.321,56.35]
[1672932177996,111.2879,13.333,13.322,20.0]
[1672932178509,111.2879,13.333,13.316,22.41737149]
[1672932178510,12.75,13.33,13.316,56.37]
[1672932178725,12.75,13.33,13.313,56.38]
[1672932178923,20.0,13.329,13.314,20.0]
[1672932179118,20.0,13.329,13.313,56.38]
[1672932179982,114.1905,13.328,13.313,56.38]
[1672932180404,20.0,13.327,13.312,113.5116]
[1672932180594,138.9657,13.327,13.312,113.5116]
[1672932181775,138.9657,13.327,13.313,20.0]
[1672932183972,138.9657,13.327,13.314,56.37]
[1672932184183,118.9657,13.327,13.315,20.0]
[1672932184394,118.9657,13.327,13.314,20.0]
[1672932184587,118.9657,13.327,13.315,78.78737149]
[1672932184916,118.9657,13.327,13.316,42.41737149]
[1672932185239,118.9657,13.327,13.316,22.41737149]
[1672932186064,118.9657,13.327,13.313,76.38]
[1672932186065,20.0,13.326,13.313,76.38]
[1672932186277,20.0,13.326,13.313,20.0]
[1672932187235,20.0,13.326,13.311,20.0]
[1672932188692,42.41737149,13.325,13.308,56.4]
[1672932188898,56.33,13.324,13.303,20.0]
[1672932189110,20.0,13.323,13.305,22.41737149]
[1672932189444,20.0,13.323,13.306,56.41]
[1672932192179,42.41737149,13.323,13.306,56.41]
[1672932192371,20.0,13.321,13.306,56.41]
[1672932192582,139.4975,13.321,13.306,56.41]
[1672932193968,20.0,13.319,13.306,56.41]
[1672932194582,113.5046,13.32,13.307,22.41737149]
[1672932195330,20.0,13.319,13.308,56.4]
[1672932195742,20.0,13.319,13.307,22.41737149]
[1672932196366,20.0,13.319,13.308,56.4]
[1672932196579,113.5046,13.32,13.308,56.4]
[1672932196908,113.5046,13.32,13.308,78.81737149]
[1672932197122,113.5046,13.32,13.308,22.41737149]
[1672932197521,20.0,13.319,13.308,22.41737149]
[1672932197852,20.0,13.319,13.306,22.41737149]
[1672932198063,20.0,13.319,13.307,56.4]
[1672932199424,20.0,13.319,13.303,56.42]
[1672932199738,20.0,13.319,13.304,20.0]
[1672932200151,20.0,13.319,13.304,42.41737149]
[1672932200373,20.0,13.319,13.305,56.41]